fUSD/lending_fUSD_20250725
["ID","MTS","AMOUNT","RATE_DAILY","PERIOD"]
[374655162,1753402243863,-751.41,0.00032151,10]
[374655164,1753402243872,-1729.15,0.00032151,10]
[374655166,1753402243882,-4680.42,0.00032151,10]
[374655168,1753402243896,-400.0,0.00032151,10]
[374655170,1753402243906,-569.53,0.00032151,10]
[374655172,1753402243915,-151.0,0.00032151,7]
[374655174,1753402243925,-166.398853,0.00032151,7]
[374655176,1753402243936,-166.398853,0.00032151,7]
[374655179,1753402243946,-3708.73,0.00032151,10]
[374655181,1753402243956,-151.0,0.00032151,7]
[374655182,1753402243967,-2082.93,0.00032151,10]
[374655184,1753402243977,-245.89035116,0.00032151,10]
[374655186,1753402243986,-2930.42,0.00032151,10]
[374655188,1753402243996,-12279.02,0.00032151,10]
[374655190,1753402244006,-498.92,0.00032151,10]
[374655192,1753402244015,-2465.7,0.00032151,10]
[374655194,1753402244026,-400.0,0.00032151,10]
[374655197,1753402244036,-623.92812543,0.00032151,10]
[374655209,1753402244117,-150.0,0.00031788,2]
[374655211,1753402244127,-300.0,0.00031942,2]
[374655213,1753402244137,-150.0,0.00032135,2]
[374655215,1753402244147,-977.3,0.0003215,10]
[374655217,1753402244157,-1223.27935198,0.00032151,10]
[374655219,1753402244170,-1985.60194426,0.00032151,10]
[374655391,1753402245950,-400.0,0.00031998,10]
[374655394,1753402245960,-400.0,0.00032063,10]
[374655395,1753402245971,-400.0,0.00032141,10]
[374655397,1753402245981,-400.0,0.00032142,10]
[374655399,1753402245990,-400.0,0.00032142,10]
[374655401,1753402246000,-400.0,0.00032142,10]
[374655403,1753402246009,-400.0,0.00032142,10]
[374655405,1753402246019,-426.60057833,0.00032151,10]
[374655407,1753402246029,-1856.13,0.00032151,10]
[374655409,1753402246039,-7762.62,0.00032151,10]
[374655411,1753402246048,-400.0,0.00032151,10]
[374655413,1753402246059,-4736.84,0.00032151,10]
[374655415,1753402246069,-3535.08,0.00032151,10]
[374655417,1753402246078,-223.018103,0.00032151,7]
[374655419,1753402246088,-223.018103,0.00032151,7]
[374655421,1753402246097,-470.33,0.00032151,10]
[374655423,1753402246107,-3249.75,0.00032151,10]
[374655425,1753402246116,-2616.67,0.00032151,10]
[374655427,1753402246126,-400.0,0.00032151,10]
[374655429,1753402246135,-7149.16,0.00032151,10]
[374655431,1753402246145,-977.3,0.00032151,10]
[374655433,1753402246155,-228.41381615,0.00032152,2]
[374655435,1753402246165,-867.53,0.00032152,10]
[374655437,1753402246174,-1379.75,0.00032152,10]
[374655439,1753402246183,-400.0,0.00032152,10]
[374655441,1753402246194,-806.81,0.00032152,10]
[374655443,1753402246205,-400.0,0.00032152,10]
[374655445,1753402246215,-700.59,0.00032152,10]
[374655447,1753402246225,-151.0,0.00032152,7]
[374655449,1753402246234,-151.0,0.00032152,7]
[374655451,1753402246244,-400.0,0.00032152,10]
[374655453,1753402246254,-2635.53,0.00032152,10]
[374655455,1753402246264,-751.41,0.00032152,10]
[374655457,1753402246273,-1729.15,0.00032152,10]
[374655459,1753402246284,-4680.42,0.00032152,10]
[374655461,1753402246294,-400.0,0.00032152,10]
[374655464,1753402246303,-151.0,0.00032152,7]
[374655466,1753402246313,-569.53,0.00032152,10]
[374655468,1753402246323,-166.398853,0.00032152,7]
[374655470,1753402246332,-166.398853,0.00032152,7]
[374655472,1753402246342,-3708.73,0.00032152,10]
[374655474,1753402246351,-151.0,0.00032152,7]
[374655475,1753402246361,-151.0,0.00032152,7]
[374655478,1753402246371,-2082.93,0.00032152,10]
[374655480,1753402246380,-2930.42,0.00032152,10]
[374655481,1753402246390,-12279.02,0.00032152,10]
[374655484,1753402246400,-498.92,0.00032152,10]
[374655485,1753402246409,-2465.7,0.00032152,10]
[374655488,1753402246419,-400.0,0.00032152,10]
[374655490,1753402246429,-4259.41,0.00032152,10]
[374655491,1753402246438,-1856.13,0.00032152,10]
[374655493,1753402246447,-531.05873585,0.00032152,10]
[374655497,1753402246475,-922.63610001,0.00032152,10]
[374655499,1753402246486,-780.10000602,0.00032152,10]
[374655873,1753402375611,153.0,0.00025,120]
[374655874,1753402377109,153.0,0.000265,120]
[374655879,1753402407904,83.635,0.00020725,2]
[374655884,1753402447472,-151.0,0.00020071,2]
[374655885,1753402475829,151.0,0.0002002,2]
[374655886,1753402492285,151.0,0.00020009,2]
[374655887,1753402510637,151.0,0.00019999,2]
[374655888,1753402527234,151.0,0.00019992,2]
[374655889,1753402543523,151.0,0.00020002,2]
[374655890,1753402562559,154.59,0.00013699,2]
[374655892,1753402575909,151.0,0.0002002,2]
[374655893,1753402592597,151.0,0.00020003,2]
[374655894,1753402609347,151.0,0.0002,2]
[374655895,1753402626005,151.0,0.00019998,2]
[374655896,1753402642289,151.0,0.00019994,2]
[374656011,1753403111803,7491.29544924,0.000154,2]
[374656033,1753403163928,1069.25065113,8e-05,2]
[374656048,1753403278755,27144.6067239,0.00019,2]
[374656424,1753403431816,-150.0,0.00022,2]
[374656425,1753403431826,-150.0,0.0002318,2]
[374656426,1753403431835,-2360.51323584,0.00024,5]
[374656427,1753403431873,-338.01216173,0.00024,5]
[374656428,1753403431929,-902.62488172,0.00024,5]
[374656429,1753403431939,-300.0,0.000242,2]
[374656430,1753403431948,-250.0,0.000242,2]
[374656431,1753403431958,-242.35,0.00024346,2]
[374656432,1753403431967,-150.0,0.0002437,2]
[374656433,1753403431976,-304.85,0.00025,2]
[374656434,1753403431986,-158.07,0.00025,2]
[374656435,1753403431996,-300.31,0.00025033,2]
[374656436,1753403432005,-305.21,0.00025201,2]
[374656437,1753403432015,-304.75,0.00025201,2]
[374656438,1753403432024,-1200.0,0.00025549,2]
[374656439,1753403432033,-230.0,0.0002555,2]
[374656440,1753403432043,-23484.9444407,0.00026,2]
[374656441,1753403432052,-242.35,0.00026077,2]
[374656442,1753403432061,-522.40160034,0.0002673,2]
[374656443,1753403432070,-600.0,0.00026808,2]
[374656444,1753403432080,-600.0,0.00026808,2]
[374656445,1753403432089,-465.79,0.00026808,2]
[374656446,1753403432099,-200.0,0.00026949,2]
[374656447,1753403432109,-2310.0,0.00027,2]
[374656448,1753403432118,-167.0,0.00027,7]
[374656449,1753403432128,-167.0,0.00027,7]
[374656450,1753403432137,-4429.246941,0.00027,7]
[374656451,1753403432146,-933.0,0.00027787,2]
[374656452,1753403432156,-242.35,0.00027807,2]
[374656453,1753403432166,-153.0,0.00028,120]
[374656454,1753403432175,-9216.856,0.00028712,2]
[374656455,1753403432185,-151.0,0.00028712,2]
[374656456,1753403432194,-231.28369723,0.00028712,2]
[374656457,1753403432204,-167.0,0.00028767,14]
[374656458,1753403432215,-167.0,0.00028767,14]
[374656459,1753403432225,-150.0,0.000288,7]
[374656460,1753403432236,-150.0,0.000288,7]
[374656462,1753403432245,-150.0,0.000288,7]
[374656464,1753403432255,-150.0,0.000288,7]
[374656466,1753403432266,-150.0,0.000288,7]
[374656469,1753403432275,-150.0,0.000288,7]
[374656470,1753403432285,-150.0,0.000288,7]
[374656471,1753403432295,-511.0,0.00028825,2]
[374656472,1753403432306,-154.78,0.00029172,120]
[374656473,1753403432316,-174.59849108,0.00029242,2]
[374656474,1753403432326,-422.17,0.00029242,2]
[374656475,1753403432335,-151.0,0.00029242,2]
[374656476,1753403432345,-151.0,0.00029242,2]
[374656477,1753403432355,-198.0,0.00029242,2]
[374656478,1753403432367,-151.0,0.00029242,2]
[374656479,1753403432376,-151.0,0.00029242,2]
[374656480,1753403432387,-233.41831213,0.00029242,2]
[374656481,1753403432396,-151.0,0.00029242,2]
[374656482,1753403432406,-163.16394105,0.00029242,2]
[374656483,1753403432416,-624.19579772,0.00029242,2]
[374656484,1753403432425,-346.92554585,0.00029242,2]
[374656485,1753403432435,-233.826,0.00029242,2]
[374656486,1753403432446,-397.36,0.00029248,2]
[374656487,1753403432455,-1000.0,0.00029259,2]
[374656488,1753403432466,-9557.879672,0.0002926,2]
[374656489,1753403432476,-151.0,0.0002926,2]
[374656490,1753403432487,-153.0,0.000295,120]
[374656491,1753403432497,-242.35,0.00029537,2]
[374656492,1753403432507,-391.72,0.00029826,30]
[374656493,1753403432518,-150.93,0.00029828,2]
[374656494,1753403432527,-233.22,0.00029937,2]
[374656495,1753403432537,-174.79,0.00029954,2]
[374656496,1753403432546,-310.439,0.00029954,24]
[374656497,1753403432557,-1000.0,0.00029979,2]
[374656498,1753403432567,-180.0,0.00029994,7]
[374656499,1753403432577,-486.60809893,0.0003,15]
[374656501,1753403432588,-5400.0,0.0003,10]
[374656503,1753403432598,-738.24734118,0.0003,120]
[374656505,1753403432608,-360.02,0.00030019,2]
[374656507,1753403432618,-873.0,0.00030022,2]
[374656509,1753403432628,-250.0,0.00030073,2]
[374656511,1753403432638,-239.84119403,0.00030081,2]
[374656513,1753403432648,-176.55,0.00030112,2]
[374656515,1753403432658,-168.0,0.00030191,2]
[374656517,1753403432667,-167.0,0.00030205,14]
[374656519,1753403432676,-168.0,0.0003027,2]
[374656521,1753403432685,-873.0,0.00030275,2]
[374656523,1753403432694,-168.0,0.00030293,2]
[374656525,1753403432705,-168.0,0.00030413,2]
[374656527,1753403432715,-150.0,0.00030564,2]
[374656529,1753403432725,-150.0,0.00030756,2]
[374656531,1753403432735,-150.0,0.00030792,2]
[374656532,1753403432744,-171.74,0.00030852,2]
[374656534,1753403432754,-511.0,0.00030903,5]
[374656535,1753403432763,-150.0,0.00030906,2]
[374656536,1753403432773,-150.0,0.00030946,2]
[374656537,1753403432783,-201.0,0.00030969,7]
[374656538,1753403432793,-153.0,0.00031,120]
[374656539,1753403432802,-168.0,0.00031158,2]
[374656540,1753403432813,-300.0,0.000312,11]
[374656541,1753403432823,-815.92,0.00031205,2]
[374656542,1753403432833,-10957.06446818,0.0003121,2]
[374656543,1753403432844,-873.0,0.00031211,7]
[374656544,1753403432854,-201.0,0.00031224,2]
[374656545,1753403432865,-150.0,0.00031258,2]
[374656546,1753403432875,-242.35,0.00031268,2]
[374656547,1753403432884,-201.0,0.00031279,2]
[374656548,1753403432895,-700.0,0.000313,11]
[374656549,1753403432905,-291.339011,0.00031308,30]
[374656550,1753403432915,-154.59,0.00031311,2]
[374656551,1753403432924,-941.92,0.00031315,2]
[374656552,1753403432935,-357.41,0.00031342,2]
[374656553,1753403432947,-2352.42,0.00031342,2]
[374656554,1753403432958,-153.69,0.00031342,2]
[374656555,1753403432970,-150.0,0.00031342,2]
[374656556,1753403432981,-150.0,0.00031342,2]
[374656557,1753403432990,-175.11,0.00031342,2]
[374656558,1753403432999,-265.43,0.00031342,2]
[374656559,1753403433010,-346.84,0.00031342,2]
[374656560,1753403433019,-251.6791,0.00031399,2]
[374656561,1753403433029,-1000.0,0.000314,10]
[374656562,1753403433039,-1000.0,0.000314,10]
[374656563,1753403433053,-1000.0,0.000314,10]
[374656564,1753403433063,-1000.0,0.000314,10]
[374656565,1753403433072,-1000.0,0.000314,10]
[374656566,1753403433082,-1000.0,0.000314,10]
[374656567,1753403433091,-1000.0,0.000314,10]
[374656568,1753403433101,-1000.0,0.000314,10]
[374656569,1753403433111,-1000.0,0.000314,10]
[374656570,1753403433121,-1000.0,0.000314,10]
[374656571,1753403433132,-1000.0,0.000314,10]
[374656572,1753403433142,-1000.0,0.000314,10]
[374656573,1753403433153,-1000.0,0.000314,10]
[374656574,1753403433164,-1000.0,0.000314,10]
[374656575,1753403433174,-1000.0,0.000314,10]
[374656576,1753403433184,-980.0,0.000314,10]
[374656577,1753403433194,-1100.0,0.000314,11]
[374656578,1753403433204,-248.71531821,0.0003145,2]
[374656579,1753403433215,-150.0,0.00031452,2]
[374656580,1753403433226,-1176.21,0.00031452,2]
[374656581,1753403433235,-459.31,0.00031452,2]
[374656582,1753403433245,-150.0,0.00031452,2]
[374656583,1753403433255,-358.19,0.00031452,2]
[374656584,1753403433264,-165.0,0.00031452,2]
[374656585,1753403433274,-150.0,0.00031452,2]
[374656586,1753403433284,-180.61,0.00031452,2]
[374656587,1753403433293,-300.81,0.00031452,2]
[374656588,1753403433303,-1176.21,0.00031452,2]
[374656589,1753403433313,-150.0,0.00031452,2]
[374656590,1753403433323,-459.31,0.00031452,2]
[374656591,1753403433334,-150.0,0.00031452,2]
[374656592,1753403433343,-172.46,0.00031452,2]
[374656593,1753403433352,-358.19,0.00031452,2]
[374656594,1753403433363,-165.0,0.00031452,2]
[374656595,1753403433372,-459.31,0.00031452,2]
[374656596,1753403433382,-165.0,0.00031452,2]
[374656597,1753403433391,-150.0,0.00031452,2]
[374656598,1753403433401,-150.0,0.00031452,2]
[374656599,1753403433411,-172.46,0.00031452,2]
[374656600,1753403433421,-358.19,0.00031452,2]
[374656601,1753403433431,-1176.21,0.00031452,2]
[374656602,1753403433441,-150.0,0.00031452,2]
[374656603,1753403433450,-172.46,0.00031452,2]
[374656604,1753403433460,-1176.21,0.00031452,2]
[374656605,1753403433470,-150.0,0.00031452,2]
[374656606,1753403433480,-165.0,0.00031452,2]
[374656607,1753403433490,-459.31,0.00031452,2]
[374656608,1753403433500,-358.19,0.00031452,2]
[374656609,1753403433509,-459.31,0.00031452,2]
[374656610,1753403433519,-172.46,0.00031452,2]
[374656611,1753403433529,-358.19,0.00031452,2]
[374656612,1753403433539,-165.0,0.00031452,2]
[374656613,1753403433548,-1176.21,0.00031452,2]
[374656614,1753403433558,-150.0,0.00031452,2]
[374656615,1753403433568,-167.83,0.00031452,2]
[374656616,1753403433577,-1176.21,0.00031452,2]
[374656617,1753403433587,-358.19,0.00031452,2]
[374656618,1753403433597,-459.31,0.00031452,2]
[374656619,1753403433607,-459.31,0.00031452,2]
[374656620,1753403433616,-358.19,0.00031452,2]
[374656621,1753403433626,-298.69,0.00031479,2]
[374656622,1753403433636,-1176.21,0.00031479,2]
[374656623,1753403433645,-358.19,0.00031479,2]
[374656624,1753403433655,-1400.0,0.000315,11]
[374656626,1753403433665,-360.02,0.0003152,2]
[374656627,1753403433675,-201.0,0.00031534,2]
[374656628,1753403433685,-152.7,0.00031584,2]
[374656629,1753403433694,-544.07,0.00031597,15]
[374656630,1753403433703,-544.07,0.00031597,15]
[374656631,1753403433713,-544.07,0.00031597,15]
[374656632,1753403433723,-544.07,0.00031597,15]
[374656633,1753403433733,-1800.0,0.000316,11]
[374656634,1753403433743,-154.48,0.00031616,2]
[374656635,1753403433753,-300.0,0.00031645,2]
[374656636,1753403433763,-201.0,0.00031657,7]
[374656637,1753403433773,-300.0,0.000317,11]
[374656638,1753403433783,-150.0,0.00031703,2]
[374656639,1753403433793,-340.0,0.00031714,7]
[374656640,1753403433803,-3059.02607856,0.00031751,2]
[374656641,1753403433813,-169.48,0.00031766,2]
[374656642,1753403433823,-3059.02607847,0.00031773,2]
[374656643,1753403433834,-3059.02607847,0.00031796,2]
[374656644,1753403433844,-600.0,0.00031797,2]
[374656645,1753403433854,-1000.0,0.000318,2]
[374656646,1753403433864,-300.0,0.000318,11]
[374656647,1753403433874,-199.74,0.00031812,2]
[374656648,1753403433884,-3059.02607847,0.00031818,2]
[374656649,1753403433893,-7000.0,0.0003183,2]
[374656650,1753403433903,-3059.02607847,0.0003184,2]
[374656651,1753403433912,-1053.9646,0.00031861,2]
[374656652,1753403433921,-3059.02607847,0.00031863,2]
[374656653,1753403433930,-544.07,0.00031871,15]
[374656654,1753403433939,-544.07,0.00031871,15]
[374656655,1753403433948,-3059.02607847,0.00031885,2]
[374656656,1753403433957,-272.11330477,0.00031886,2]
[374656657,1753403433967,-194.98069152,0.00031886,15]
[374656658,1753403433976,-155.89272659,0.00031886,2]
[374656659,1753403433987,-272.11330473,0.00031894,2]
[374656660,1753403433997,-5000.0,0.00031897,2]
[374656661,1753403434007,-155.4175798,0.000319,2]
[374656662,1753403434016,-155.41757975,0.000319,2]
[374656663,1753403434026,-300.0,0.000319,11]
[374656664,1753403434036,-155.41757975,0.000319,2]
[374656666,1753403434046,-155.41757975,0.000319,2]
[374656667,1753403434056,-155.41757975,0.000319,2]
[374656668,1753403434066,-155.41757975,0.000319,2]
[374656669,1753403434076,-155.41757975,0.000319,2]
[374656670,1753403434086,-155.41757975,0.000319,2]
[374656671,1753403434096,-155.41757975,0.000319,2]
[374656672,1753403434105,-155.41757975,0.000319,2]
[374656673,1753403434115,-155.41757975,0.000319,2]
[374656674,1753403434125,-155.41757975,0.00031902,2]
[374656675,1753403434134,-272.11330473,0.00031903,2]
[374656676,1753403434144,-155.41757975,0.00031906,2]
[374656677,1753403434154,-3059.02607847,0.00031907,2]
[374656678,1753403434163,-155.41757975,0.00031909,2]
[374656679,1753403434173,-272.11330473,0.00031911,2]
[374656680,1753403434183,-155.41757975,0.00031913,2]
[374656681,1753403434194,-272.11330473,0.0003192,2]
[374656682,1753403434204,-272.11330473,0.00031928,2]
[374656683,1753403434217,-150.0,0.00031929,2]
[374656684,1753403434227,-3059.02607847,0.0003193,2]
[374656686,1753403434240,-272.11330473,0.00031937,2]
[374656687,1753403434250,-1000.0,0.00031941,2]
[374656688,1753403434260,-272.11330473,0.00031945,2]
[374656689,1753403434272,-1091.26727572,0.0003195,2]
[374656690,1753403434283,-3059.02607847,0.00031952,2]
[374656691,1753403434293,-272.11330473,0.00031954,2]
[374656692,1753403434303,-169.48,0.00031959,2]
[374656693,1753403434313,-915.98911884,0.0003196,2]
[374656694,1753403434323,-1682.78,0.0003196,10]
[374656695,1753403434334,-400.0,0.0003196,10]
[374656696,1753403434343,-413.82,0.0003196,2]
[374656697,1753403434353,-854.68,0.0003196,10]
[374656698,1753403434363,-160.0,0.0003196,2]
[374656699,1753403434372,-1431.44,0.0003196,10]
[374656701,1753403434383,-761.41,0.0003196,10]
[374656702,1753403434392,-400.0,0.0003196,2]
[374656703,1753403434402,-1115.42,0.0003196,10]
[374656704,1753403434411,-1930.75,0.0003196,10]
[374656705,1753403434423,-122203.0351,0.00031961,2]
[374656706,1753403434433,-272.11330473,0.00031962,2]
[374656707,1753403434443,-340.0,0.00031963,2]
[374656708,1753403434452,-200.0,0.00031968,2]
[374656709,1753403434462,-500.0,0.00031973,5]
[374656710,1753403434472,-500.0,0.00031973,5]
[374656711,1753403434483,-500.0,0.00031973,5]
[374656712,1753403434494,-500.0,0.00031973,5]
[374656713,1753403434504,-500.0,0.00031973,2]
[374656714,1753403434512,-500.0,0.00031973,5]
[374656715,1753403434522,-500.0,0.00031973,5]
[374656716,1753403434532,-500.0,0.00031973,5]
[374656717,1753403434542,-500.0,0.00031973,5]
[374656718,1753403434551,-500.0,0.00031973,5]
[374656719,1753403434561,-500.0,0.00031973,5]
[374656720,1753403434571,-500.0,0.00031973,5]
[374656721,1753403434581,-892.24,0.00031976,10]
[374656722,1753403434591,-400.0,0.00031976,10]
[374656723,1753403434600,-400.0,0.00031976,10]
[374656724,1753403434610,-400.0,0.00031976,10]
[374656725,1753403434619,-400.0,0.00031976,10]
[374656726,1753403434629,-400.0,0.00031976,10]
[374656727,1753403434639,-400.0,0.00031976,10]
[374656728,1753403434649,-400.0,0.00031976,10]
[374656729,1753403434658,-677.85,0.00031976,10]
[374656730,1753403434668,-400.0,0.00031976,10]
[374656731,1753403434678,-400.0,0.00031976,10]
[374656732,1753403434688,-688.8,0.00031976,10]
[374656733,1753403434698,-400.0,0.00031976,10]
[374656734,1753403434708,-443.0160352,0.00031976,10]
[374656735,1753403434718,-400.0,0.00031976,10]
[374656736,1753403434728,-400.0,0.00031976,10]
[374656737,1753403434739,-522.07,0.00031976,10]
[374656738,1753403434749,-400.0,0.00031976,10]
[374656739,1753403434759,-2475.9,0.00031976,10]
[374656740,1753403434769,-784.5,0.00031976,10]
[374656741,1753403434779,-1969.35,0.00031976,10]
[374656742,1753403434789,-4404.47,0.00031976,10]
[374656743,1753403434799,-2783.64,0.00031976,10]
[374656744,1753403434809,-4641.12,0.00031976,10]
[374656745,1753403434819,-457.34,0.00031976,10]
[374656746,1753403434828,-400.0,0.00031976,10]
[374656747,1753403434837,-3504.83,0.00031976,10]
[374656748,1753403434847,-3864.05,0.00031976,10]
[374656749,1753403434857,-400.0,0.00031976,10]
[374656750,1753403434867,-1752.83,0.00031976,10]
[374656751,1753403434877,-400.0,0.00031976,10]
[374656752,1753403434886,-400.0,0.00031976,10]
[374656753,1753403434896,-11551.29,0.00031976,10]
[374656754,1753403434906,-462.38919143,0.00031976,10]
[374656755,1753403434915,-400.0,0.00031976,10]
[374656756,1753403434925,-2392.8,0.00031976,10]
[374656757,1753403434934,-400.0,0.00031976,10]
[374656758,1753403434944,-2521.38,0.00031976,10]
[374656759,1753403434953,-874.3,0.00031976,10]
[374656760,1753403434963,-1682.78,0.00031976,10]
[374656761,1753403434972,-2320.23,0.00031976,10]
[374656762,1753403434982,-400.0,0.00031976,10]
[374656763,1753403434993,-854.68,0.00031976,10]
[374656764,1753403435003,-3613.18,0.00031976,10]
[374656765,1753403435012,-1431.44,0.00031976,10]
[374656766,1753403435022,-761.41,0.00031976,10]
[374656767,1753403435031,-400.0,0.00031976,10]
[374656768,1753403435041,-1115.42,0.00031976,10]
[374656769,1753403435051,-1930.75,0.00031976,10]
[374656770,1753403435062,-50657.1537378,0.00031976,2]
[374656771,1753403435071,-50657.1537378,0.00031977,2]
[374656772,1753403435081,-82392.92233382,0.00031977,2]
[374656773,1753403435099,-35807.10305418,0.00031977,2]
[374656774,1753403435108,-78394.3491989,0.00031977,2]
[374656775,1753403435118,-16885.7179126,0.00031978,2]
[374656776,1753403435127,-4899.64682493,0.00031978,2]
[374656777,1753403435137,-16885.7179126,0.00031978,2]
[374656778,1753403435146,-29397.8809496,0.00031978,2]
[374656779,1753403435155,-33771.4358252,0.00031979,2]
[374656780,1753403435165,-19598.5872997,0.00031979,2]
[374656781,1753403435175,-4899.64682493,0.00031979,2]
[374656782,1753403435184,-150.0,0.0003198,2]
[374656783,1753403435193,-1682.78,0.00031984,10]
[374656784,1753403435203,-400.0,0.00031984,10]
[374656785,1753403435214,-854.68,0.00031984,10]
[374656786,1753403435226,-1431.44,0.00031984,10]
[374656787,1753403435244,-761.41,0.00031984,10]
[374656788,1753403435254,-1115.42,0.00031984,10]
[374656789,1753403435263,-1682.78,0.00031985,10]
[374656790,1753403435273,-400.0,0.00031985,10]
[374656791,1753403435284,-854.68,0.00031985,10]
[374656792,1753403435294,-1431.44,0.00031985,10]
[374656793,1753403435305,-761.41,0.00031985,10]
[374656794,1753403435315,-1115.42,0.00031985,10]
[374656795,1753403435324,-67542.8716504,0.00031985,2]
[374656796,1753403435334,-63695.4087241,0.00031985,2]
[374656797,1753403435343,-33771.4358252,0.00031986,2]
[374656798,1753403435352,-93093.2896737,0.00031986,2]
[374656799,1753403435362,-400.0,0.00031986,10]
[374656800,1753403435371,-400.0,0.00031986,10]
[374656801,1753403435381,-711.61,0.00031986,10]
[374656802,1753403435391,-400.0,0.00031986,10]
[374656803,1753403435400,-400.0,0.00031986,10]
[374656804,1753403435410,-400.0,0.00031986,10]
[374656805,1753403435419,-400.0,0.00031986,10]
[374656806,1753403435429,-499.68,0.00031986,10]
[374656807,1753403435439,-400.0,0.00031986,10]
[374656808,1753403435448,-400.0,0.00031986,10]
[374656809,1753403435458,-400.0,0.00031986,10]
[374656810,1753403435468,-400.0,0.00031986,10]
[374656811,1753403435479,-892.24,0.00031986,10]
[374656812,1753403435490,-892.24,0.00031986,10]
[374656813,1753403435499,-544.338891,0.00031986,10]
[374656814,1753403435509,-400.0,0.00031986,10]
[374656815,1753403435519,-400.0,0.00031986,10]
[374656816,1753403435529,-400.0,0.00031986,10]
[374656817,1753403435539,-400.0,0.00031986,10]
[374656818,1753403435549,-5597.96,0.00031986,10]
[374656819,1753403435869,-2295.09,0.00031986,10]
[374656820,1753403435879,-3075.31,0.00031986,10]
[374656821,1753403435888,-3058.16,0.00031986,10]
[374656822,1753403435897,-400.0,0.00031986,10]
[374656823,1753403435907,-400.0,0.00031986,10]
[374656824,1753403435916,-13007.53,0.00031986,10]
[374656825,1753403435926,-400.0,0.00031986,10]
[374656826,1753403435935,-400.0,0.00031986,10]
[374656827,1753403435945,-400.0,0.00031986,10]
[374656828,1753403435954,-6143.68,0.00031986,10]
[374656829,1753403435964,-400.0,0.00031986,10]
[374656830,1753403435973,-400.0,0.00031986,10]
[374656831,1753403435983,-400.0,0.00031986,10]
[374656832,1753403435994,-163.31795,0.00031986,10]
[374656833,1753403436003,-165.999605,0.00031986,10]
[374656834,1753403436013,-2909.555568,0.00031986,10]
[374656835,1753403436022,-3008.945631,0.00031986,10]
[374656836,1753403436032,-4201.81,0.00031986,10]
[374656837,1753403436041,-400.0,0.00031986,10]
[374656838,1753403436051,-3133.934716,0.00031986,10]
[374656839,1753403436060,-400.0,0.00031986,10]
[374656840,1753403436070,-3133.934716,0.00031986,10]
[374656841,1753403436079,-2597.69,0.00031986,10]
[374656842,1753403436089,-677.85,0.00031986,10]
[374656843,1753403436098,-677.85,0.00031986,10]
[374656844,1753403436107,-2035.65,0.00031986,10]
[374656845,1753403436118,-4016.5,0.00031986,10]
[374656846,1753403436128,-400.0,0.00031986,10]
[374656847,1753403436139,-400.0,0.00031986,10]
[374656848,1753403436149,-4867.17,0.00031986,10]
[374656849,1753403436159,-6499.08,0.00031986,10]
[374656850,1753403436168,-400.0,0.00031986,10]
[374656851,1753403436179,-400.0,0.00031986,10]
[374656852,1753403436191,-157.493079,0.00031986,10]
[374656853,1753403436200,-15991.29,0.00031986,10]